fUST/lending_fUST_20251117
["ID","MTS","AMOUNT","RATE_DAILY","PERIOD"]
[394210715,1763381445148,-205.20856145,0.00026198,32]
[394210716,1763381445158,-256.51070181,0.00026198,32]
[394210717,1763381445168,-417.92,0.000262,14]
[394210718,1763381445177,-168.0,0.00026275,2]
[394210719,1763381445187,-500.0,0.00026301,2]
[394210720,1763381445197,-205.20856145,0.00026309,40]
[394210721,1763381445207,-1877.37694969,0.00026356,2]
[394210722,1763381445218,-2109.83310612,0.00026356,2]
[394210723,1763381445228,-205.20856145,0.00026421,48]
[394210724,1763381445238,-15842.12566165,0.000265,7]
[394210725,1763381445563,-3e-08,0.000265,7]
[394210726,1763381445719,-12418.14433832,0.000265,7]
[394210727,1763381445729,-205.20856145,0.00026532,56]
[394210728,1763381445739,-576.55894121,0.00026548,5]
[394210729,1763381445748,-525.41,0.000266,7]
[394210730,1763381445758,-205.20856145,0.00026644,63]
[394210731,1763381445767,-246.46959757,0.00026676,2]
[394210733,1763381546810,-363.85737218,0.00014078,2]
[394210734,1763381546833,-528.33926907,0.00014097,2]
[394210735,1763381546856,-77.44333996,0.00014097,2]
[394210736,1763381549954,-240.87556368,0.00014097,2]
[394210737,1763381552511,-166.99,0.00014097,2]
[394210738,1763381555088,-166.9990097,0.00014097,2]
[394210739,1763381557035,-180.02922251,0.00014097,2]
[394210740,1763381636845,-241.14292132,0.00014096,2]
[394210741,1763381638793,-508.13254612,0.00014096,2]
[394210742,1763381640328,-450.72453256,0.00014096,2]
[394210743,1763381640350,-49.27546744,0.00014096,2]
[394210744,1763381641859,-618.69008284,0.00013955,2]
[394210745,1763381644097,-248.26,0.00013955,2]
[394210746,1763381646137,-183.716,0.00013955,2]
[394210748,1763381846864,-183.716,0.00013815,2]
[394210749,1763381956008,723.29797832,0.00032876,120]
[394210750,1763382221227,-768.28,0.00021321,20]
[394210751,1763382396075,183.716,0.000165,3]
[394210752,1763382404401,3765.61791716,0.000165,3]
[394210753,1763382409109,-196.25497167,0.00014007,2]
[394210754,1763382409130,-20.4262669,0.00014036,2]
[394210755,1763382446927,161.9324311,0.00013133,2]
[394210777,1763382540812,165.22064318,0.000328,120]
[394211034,1763382636225,-294.0,0.00013896,2]
[394211035,1763382636234,-192.32987224,0.00013966,2]
[394211036,1763382636244,-157.44153244,0.00013972,2]
[394211037,1763382636255,-142.55846756,0.00013972,2]
[394211038,1763382636265,-300.0,0.00013972,2]
[394211039,1763382636274,-469.84557644,0.00013972,2]
[394211040,1763382636337,-730.15442356,0.00013972,2]
[394211041,1763382636346,-300.0,0.00013972,2]
[394211042,1763382636355,-5663.10889682,0.00013973,2]
[394211177,1763382637773,-4776.88038267,0.00013973,2]
[394211179,1763382637785,-196.25497167,0.00014036,2]
[394211181,1763382637795,-1970.18166194,0.00014036,2]
[394211183,1763382637805,-6396.41535491,0.00014065,2]
[394211184,1763382637814,-290.41622311,0.00014066,2]
[394211185,1763382637824,-500.0,0.00014066,2]
[394211186,1763382637834,-181.09090283,0.00014066,2]
[394211187,1763382637843,-500.0,0.00014066,2]
[394211188,1763382637853,-500.0,0.00014066,2]
[394211189,1763382637864,-500.0,0.00014066,2]
[394211190,1763382637875,-500.0,0.00014066,2]
[394211191,1763382637884,-341.59149544,0.00014066,2]
[394211192,1763382637894,-500.0,0.00014066,2]
[394211193,1763382637904,-500.0,0.00014066,2]
[394211194,1763382637913,-500.0,0.00014066,2]
[394211195,1763382637924,-500.0,0.00014066,2]
[394211196,1763382637934,-500.0,0.00014066,2]
[394211197,1763382637944,-500.0,0.00014066,2]
[394211198,1763382637953,-500.0,0.00014066,2]
[394211199,1763382637963,-500.0,0.00014066,2]
[394211200,1763382637972,-500.0,0.00014066,2]
[394211201,1763382637982,-500.0,0.00014066,2]
[394211202,1763382637991,-500.0,0.00014066,2]
[394211203,1763382638001,-500.0,0.00014066,2]
[394211204,1763382638010,-500.0,0.00014066,2]
[394211205,1763382638020,-500.0,0.00014066,2]
[394211206,1763382638030,-500.0,0.00014066,2]
[394211207,1763382638040,-500.0,0.00014066,2]
[394211209,1763382638049,-500.0,0.00014066,2]
[394211211,1763382638059,-500.0,0.00014066,2]
[394211213,1763382638069,-500.0,0.00014066,2]
[394211215,1763382638078,-500.0,0.00014066,2]
[394211217,1763382638088,-500.0,0.00014066,2]
[394211219,1763382638098,-500.0,0.00014066,2]
[394211221,1763382638107,-500.0,0.00014066,2]
[394211223,1763382638116,-500.0,0.00014066,2]
[394211225,1763382638126,-500.0,0.00014066,2]
[394211227,1763382638135,-500.0,0.00014066,2]
[394211229,1763382638145,-500.0,0.00014066,2]
[394211231,1763382638153,-500.0,0.00014066,2]
[394211233,1763382638163,-612.78508752,0.00014066,2]
[394211234,1763382638174,-500.0,0.00014066,2]
[394211236,1763382638184,-500.0,0.00014066,2]
[394211248,1763382638275,-500.0,0.00014066,2]
[394211250,1763382638288,-500.0,0.00014066,2]
[394211252,1763382638298,-500.0,0.00014066,2]
[394211254,1763382638308,-500.0,0.00014066,2]
[394211256,1763382638318,-500.0,0.00014066,2]
[394211258,1763382638327,-500.0,0.00014066,2]
[394211260,1763382638337,-500.0,0.00014066,2]
[394211262,1763382638346,-890000.0,0.00014067,2]
[394211264,1763382638355,-50000.0,0.00014067,2]
[394211266,1763382638365,-500.0,0.00014073,2]
[394211268,1763382638374,-500.0,0.00014073,2]
[394211270,1763382638384,-500.0,0.00014073,2]
[394211272,1763382638394,-500.0,0.00014073,2]
[394211273,1763382638403,-501.78202834,0.00014073,2]
[394211276,1763382638412,-325.78165932,0.00014073,2]
[394211278,1763382638421,-500.93977236,0.00014073,2]
[394211280,1763382638431,-436.00854889,0.00014073,2]
[394211282,1763382638440,-500.0,0.00014073,2]
[394211284,1763382638450,-500.0,0.00014073,2]
[394211286,1763382638459,-503.94861877,0.00014073,2]
[394211287,1763382638467,-1200.0,0.00014097,2]
[394211289,1763382638478,-266.72444335,0.00014168,2]
[394211291,1763382638488,-151.0,0.00014169,2]
[394211293,1763382638497,-151.0,0.00014169,2]
[394211296,1763382638507,-151.0,0.00014169,2]
[394211297,1763382638516,-151.0,0.00014169,2]
[394211300,1763382638526,-151.0,0.00014169,2]
[394211302,1763382638535,-151.0,0.00014169,2]
[394211304,1763382638544,-151.0,0.00014169,2]
[394211306,1763382638556,-151.0,0.00014169,2]
[394211308,1763382638565,-151.0,0.00014169,2]
[394211310,1763382638575,-151.0,0.00014169,2]
[394211312,1763382638584,-151.0,0.00014169,2]
[394211314,1763382638594,-151.0,0.00014169,2]
[394211316,1763382638604,-151.0,0.00014169,2]
[394211318,1763382638614,-275.61491986,0.00014169,2]
[394211320,1763382638623,-500.0,0.00014171,2]
[394211322,1763382638632,-504.2003631,0.00014173,2]
[394211324,1763382638642,-501.98604669,0.00014173,2]
[394211326,1763382638651,-500.0,0.00014173,2]
[394211328,1763382638661,-504.39729858,0.00014173,2]
[394211330,1763382638671,-488.03765742,0.00014173,2]
[394211332,1763382638681,-518.08160207,0.00014173,2]
[394211334,1763382638690,-502.26261043,0.00014173,2]
[394211336,1763382638699,-500.0,0.00014173,2]
[394211338,1763382638709,-502.8585748,0.00014173,2]
[394211340,1763382638719,-500.0,0.00014173,2]
[394211342,1763382638729,-500.0,0.00014173,2]
[394211344,1763382638738,-507.23857365,0.00014173,2]
[394211346,1763382638748,-500.0,0.00014173,2]
[394211348,1763382638757,-429.52953356,0.00014173,2]
[394211350,1763382638767,-445.08248483,0.00014173,2]
[394211352,1763382638776,-500.0,0.00014173,2]
[394211354,1763382638789,-500.0,0.00014173,2]
[394211356,1763382638798,-500.0,0.00014173,2]
[394211358,1763382638807,-500.0,0.00014173,2]
[394211360,1763382638817,-158.85384484,0.00014173,2]
[394211362,1763382638827,-500.0,0.00014173,2]
[394211363,1763382638837,-500.0,0.00014173,2]
[394211365,1763382638846,-169.58130387,0.00014173,2]
[394211366,1763382638856,-500.0,0.00014173,2]
[394211367,1763382638868,-249.43248286,0.00014173,2]
[394211368,1763382638878,-500.0,0.00014173,2]
[394211369,1763382638887,-500.0,0.00014173,2]
[394211370,1763382638897,-500.0,0.00014173,2]
[394211371,1763382638906,-500.0,0.00014173,2]
[394211372,1763382638916,-500.0,0.00014173,2]
[394211373,1763382638926,-502.86159398,0.00014173,2]
[394211374,1763382638936,-500.0,0.00014173,2]
[394211375,1763382638946,-500.0,0.00014173,2]
[394211376,1763382638955,-500.0,0.00014173,2]
[394211377,1763382638965,-500.0,0.00014173,2]
[394211378,1763382638974,-500.0,0.00014173,2]
[394211379,1763382638983,-151.0,0.000142,2]
[394211380,1763382638992,-151.0,0.000142,2]
[394211381,1763382639002,-151.0,0.000142,2]
[394211382,1763382639011,-151.0,0.000142,2]
[394211383,1763382639021,-1830.0,0.00014272,2]
[394211384,1763382639031,-500.0,0.00014378,2]
[394211385,1763382639042,-2629.03,0.00014378,2]
[394211386,1763382639052,-333.64945345,0.00014378,2]
[394211387,1763382639062,-500.0,0.00014378,2]
[394211388,1763382639071,-500.0,0.00014379,2]
[394211389,1763382639081,-500.0,0.00014379,2]
[394211390,1763382639090,-2629.03,0.00014379,2]
[394211391,1763382639100,-2629.03,0.00014379,2]
[394211392,1763382639110,-2629.03,0.00014379,2]
[394211393,1763382639120,-500.0,0.00014379,2]
[394211394,1763382639130,-500.0,0.00014445,2]
[394211395,1763382639139,-300.0,0.00014562,2]
[394211396,1763382639149,-300.0,0.00014562,2]
[394211397,1763382639159,-300.0,0.00014562,2]
[394211398,1763382639170,-300.0,0.00014562,2]
[394211399,1763382639180,-300.0,0.00014562,2]
[394211400,1763382639189,-300.0,0.00014562,2]
[394211401,1763382639199,-300.0,0.00014562,2]
[394211403,1763382639209,-300.0,0.00014562,2]
[394211404,1763382639219,-300.0,0.00014562,2]
[394211405,1763382639228,-300.0,0.00014562,2]
[394211406,1763382639240,-300.0,0.00014562,2]
[394211408,1763382639249,-300.0,0.00014562,2]
[394211409,1763382639259,-300.0,0.00014562,2]
[394211410,1763382639268,-300.0,0.00014562,2]
[394211411,1763382639279,-300.0,0.00014562,2]
[394211413,1763382639290,-600.0,0.00014562,2]
[394211415,1763382639299,-10439.98927945,0.00014564,2]
[394211417,1763382639308,-524.87998137,0.00014621,2]
[394211419,1763382639317,-1004.49475929,0.00014621,2]
[394211420,1763382639327,-1001.94711302,0.00014621,2]
[394211422,1763382639336,-1000.0,0.00014621,2]
[394211424,1763382639346,-590.68055788,0.00014621,2]
[394211425,1763382639356,-1970.81895275,0.00014658,2]
[394211426,1763382639366,-500.0,0.00014719,2]
[394211427,1763382639375,-599.65177378,0.00014721,2]
[394211428,1763382639384,-508.13254612,0.00014721,2]
[394211429,1763382639393,-1000.0,0.00014721,2]
[394211430,1763382639403,-513.64025914,0.00014721,2]
[394211431,1763382639412,-501.54850908,0.00014721,2]
[394211432,1763382639423,-501.0503735,0.00014721,2]
[394211433,1763382639432,-1000.0,0.00014721,2]
[394211434,1763382639441,-1000.0,0.00014721,2]
[394211435,1763382639450,-357.78598318,0.00014721,2]
[394211436,1763382639459,-509.45721812,0.00014721,2]
[394211437,1763382639468,-1001.19443095,0.00014721,2]
[394211438,1763382639477,-1000.0,0.00014721,2]
[394211439,1763382639487,-591.25490149,0.000149,2]
[394211440,1763382639496,-500.0,0.00014993,2]
[394211441,1763382639505,-1012.54980437,0.00015,2]
[394211442,1763382639515,-191.9205564,0.00015068,2]
[394211443,1763382639524,-800.0,0.00015068,2]
[394211444,1763382639533,-10439.98927945,0.00015155,2]
[394211445,1763382639550,-1500.0,0.00015168,2]
[394211446,1763382639560,-500.0,0.00015267,2]
[394211447,1763382639575,-1017.26996116,0.00015268,2]
[394211448,1763382639586,-1500.0,0.00015268,2]
[394211449,1763382639596,-504.70574074,0.00015268,2]
[394211450,1763382639606,-1500.0,0.00015268,2]
[394211451,1763382639616,-420.0,0.00015308,2]
[394211452,1763382639625,-300.0,0.00015308,2]
[394211453,1763382639634,-100000.0,0.0001532,2]
[394211454,1763382639644,-1680.0,0.00015369,2]
[394211455,1763382639653,-2629.03,0.00015372,2]
[394211456,1763382639662,-466.99895109,0.00015373,2]
[394211457,1763382639674,-500.0,0.00015373,2]
[394211458,1763382639683,-502.37853821,0.00015373,2]
[394211459,1763382639692,-501.96334487,0.00015373,2]
[394211460,1763382639702,-500.0,0.00015373,2]
[394211461,1763382639711,-500.0,0.00015373,2]
[394211462,1763382639721,-507.90955875,0.00015373,2]
[394211463,1763382639730,-503.85554989,0.00015373,2]
[394211464,1763382639739,-500.0,0.00015373,2]
[394211465,1763382639823,-338.19405794,0.00015373,2]
[394211466,1763382639833,-500.0,0.00015373,2]
[394211468,1763382639843,-435.59980476,0.00015373,2]
[394211470,1763382639853,-500.0,0.00015373,2]
[394211472,1763382639864,-501.72444069,0.00015373,2]
[394211474,1763382639873,-500.0,0.00015373,2]
[394211476,1763382639882,-500.0,0.00015373,2]
[394211478,1763382639892,-500.0,0.00015373,2]
[394211480,1763382639901,-500.0,0.00015373,2]
[394211482,1763382639910,-500.0,0.00015373,2]
[394211484,1763382639919,-205.68764944,0.00015414,2]
[394211486,1763382639930,-1680.0,0.00015443,2]
[394211488,1763382639940,-500.0,0.00015541,2]
[394211491,1763382639951,-2629.03,0.00015693,2]
[394211493,1763382639960,-2629.03,0.00015693,2]
[394211495,1763382639970,-2629.03,0.00015693,2]
[394211496,1763382639979,-1685.90415884,0.00015716,2]
[394211499,1763382639989,-10439.98927945,0.00015746,2]
[394211500,1763382639998,-500.0,0.00015815,2]
[394211503,1763382640008,-2000.0,0.00015816,2]
[394211504,1763382640017,-2000.0,0.00015816,2]
[394211507,1763382640027,-1000.0,0.00015921,2]
[394211508,1763382640036,-500.81735696,0.00015921,2]
[394211510,1763382640045,-506.86742327,0.00015921,2]
[394211513,1763382640056,-1000.0,0.00015921,2]
[394211515,1763382640066,-1000.0,0.00015921,2]
[394211516,1763382640076,-501.42486407,0.00015921,2]
[394211518,1763382640086,-1000.0,0.00015921,2]
[394211521,1763382640096,-226.94924924,0.00015966,2]
[394211523,1763382640105,-2629.03,0.00015989,2]
[394211525,1763382640115,-2629.03,0.00015989,2]
[394211527,1763382640125,-2629.03,0.00015989,2]
[394211529,1763382640134,-2629.03,0.00015989,2]
[394211531,1763382640143,-2629.03,0.00015989,2]
[394211532,1763382640154,-214.49673493,0.00016,2]
[394211534,1763382640163,-720.0,0.00016019,2]
[394211536,1763382640176,-1135.24857012,0.00016061,2]
[394211538,1763382640186,-500.0,0.00016088,2]
[394211540,1763382640196,-1600.0,0.00016164,2]
[394211542,1763382640205,-2629.03,0.00016337,2]
[394211544,1763382640215,-10439.98927945,0.00016337,2]
[394211546,1763382640224,-500.0,0.00016362,2]
[394211549,1763382640234,-2355.51592409,0.00016364,2]
[394211551,1763382640244,-2500.0,0.00016364,2]
[394211553,1763382640253,-2629.03,0.00016437,2]
[394211555,1763382640263,-2629.03,0.00016437,2]
[394211557,1763382640272,-2629.03,0.00016437,2]
[394211559,1763382640282,-2629.03,0.00016437,2]
[394211561,1763382640291,-2629.03,0.00016437,2]
[394211563,1763382640300,-2629.03,0.00016437,2]
[394211565,1763382640310,-2629.03,0.00016437,2]
[394211567,1763382640319,-2629.03,0.00016437,2]
[394211569,1763382640328,-2629.03,0.00016437,2]
[394211571,1763382640337,-2629.15327234,0.00016437,2]
[394211573,1763382640347,-626.360968,0.00016438,2]
[394211575,1763382640357,-626.360968,0.00016438,2]
[394211577,1763382640367,-626.360968,0.00016438,2]
[394211579,1763382640376,-626.360968,0.00016438,2]
[394211581,1763382640385,-626.360968,0.00016438,2]
[394211583,1763382640394,-626.360968,0.00016438,2]
[394211585,1763382640403,-626.360968,0.00016438,2]
[394211587,1763382640412,-626.360968,0.00016438,2]
[394211589,1763382640426,-626.360968,0.00016438,2]
[394211591,1763382640436,-626.360968,0.00016438,2]
[394211593,1763382640446,-626.360968,0.00016438,2]
[394211595,1763382640455,-626.360968,0.00016438,2]
[394211597,1763382640467,-626.360968,0.00016438,2]
[394211599,1763382640476,-500.0,0.00016438,2]
[394211601,1763382640487,-500.0,0.00016438,2]
[394211603,1763382640496,-500.0,0.00016438,2]
[394211605,1763382640505,-500.0,0.00016438,2]
[394211607,1763382640514,-500.0,0.00016438,2]
[394211609,1763382640524,-588.0371519,0.00016438,2]
[394211611,1763382640533,-500.0,0.00016438,2]
[394211613,1763382640542,-626.360968,0.00016438,2]
[394211615,1763382640551,-500.0,0.00016438,2]
[394211617,1763382640561,-500.0,0.00016438,2]
[394211619,1763382640570,-500.0,0.00016438,2]
[394211621,1763382640579,-500.0,0.00016438,2]
[394211623,1763382640588,-500.0,0.00016438,2]
[394211625,1763382640597,-500.0,0.00016438,2]
[394211627,1763382640606,-500.0,0.00016438,2]
[394211629,1763382640615,-500.0,0.00016438,2]
[394211631,1763382640624,-500.0,0.00016438,2]
[394211633,1763382640633,-500.0,0.00016438,2]
[394211635,1763382640643,-626.360968,0.00016438,2]
[394211637,1763382640652,-500.0,0.00016438,2]
[394211640,1763382640667,-500.0,0.00016438,2]
[394211642,1763382640678,-500.0,0.00016438,2]
[394211643,1763382640687,-500.0,0.00016438,2]
[394211645,1763382640696,-500.0,0.00016438,2]
[394211648,1763382640705,-500.0,0.00016438,2]
[394211649,1763382640715,-500.0,0.00016438,2]
[394211652,1763382640725,-500.0,0.00016438,2]
[394211654,1763382640735,-500.0,0.00016438,2]
[394211656,1763382640745,-500.0,0.00016438,2]
[394211658,1763382640754,-500.0,0.00016438,2]
[394211660,1763382640763,-500.0,0.00016438,2]
[394211662,1763382640772,-500.0,0.00016438,2]
[394211664,1763382640783,-500.0,0.00016438,2]
[394211666,1763382640799,-500.0,0.00016438,2]
[394211668,1763382640808,-500.0,0.00016438,2]
[394211670,1763382640818,-500.0,0.00016438,2]
[394211672,1763382640827,-500.0,0.00016438,2]
[394211674,1763382640837,-500.0,0.00016438,2]
[394211676,1763382640847,-500.0,0.00016438,2]
[394211678,1763382640859,-500.0,0.00016438,2]
[394211680,1763382640874,-500.0,0.00016438,2]
[394211682,1763382640884,-500.0,0.00016438,2]
[394211684,1763382640893,-500.0,0.00016438,2]
[394211686,1763382640903,-500.0,0.00016438,2]
[394211688,1763382640913,-500.0,0.00016438,2]
[394211691,1763382640925,-500.0,0.00016438,2]
[394211693,1763382640935,-563.97989048,0.00016438,2]
[394211695,1763382640945,-500.0,0.00016438,2]
[394211697,1763382640954,-500.0,0.00016438,2]
[394211699,1763382640964,-500.0,0.00016438,2]
[394211701,1763382640974,-500.0,0.00016438,2]
[394211703,1763382640983,-500.0,0.00016438,2]
[394211705,1763382640993,-500.0,0.00016438,2]
[394211707,1763382641002,-500.0,0.00016438,2]
[394211709,1763382641012,-500.0,0.00016438,2]
[394211711,1763382641021,-500.0,0.00016438,2]
[394211713,1763382641030,-500.0,0.00016438,2]
[394211715,1763382641040,-500.0,0.00016438,2]
[394211717,1763382641049,-317.6909686,0.00016438,2]
[394211719,1763382641058,-500.0,0.00016438,2]
[394211721,1763382641068,-500.0,0.00016438,2]
[394211723,1763382641078,-500.0,0.00016438,2]
[394211725,1763382641087,-500.0,0.00016438,2]
[394211727,1763382641097,-500.0,0.00016438,2]
[394211729,1763382641106,-500.0,0.00016438,2]
[394211731,1763382641115,-500.0,0.00016438,2]
[394211733,1763382641125,-500.0,0.00016438,2]
[394211735,1763382641134,-500.0,0.00016438,2]
[394211737,1763382641143,-500.0,0.00016438,2]
[394211739,1763382641153,-500.0,0.00016438,2]
[394211748,1763382641219,-500.0,0.00016438,2]
[394211750,1763382641236,-500.0,0.00016438,2]
[394211752,1763382641244,-500.0,0.00016438,2]
[394211754,1763382641254,-500.0,0.00016438,2]
[394211756,1763382641263,-500.0,0.00016438,2]
[394211758,1763382641272,-500.0,0.00016438,2]
[394211760,1763382641282,-500.0,0.00016438,2]
[394211762,1763382641291,-500.0,0.00016438,2]
[394211764,1763382641300,-500.0,0.00016438,2]
[394211766,1763382641309,-500.0,0.00016438,2]
[394211768,1763382641319,-500.0,0.00016438,2]
[394211770,1763382641328,-500.0,0.00016438,2]
[394211772,1763382641337,-500.0,0.00016438,2]
[394211774,1763382641347,-500.0,0.00016438,2]
[394211776,1763382641356,-500.0,0.00016438,2]
[394211778,1763382641366,-500.0,0.00016438,2]
[394211780,1763382641376,-500.0,0.00016438,2]
[394211782,1763382641386,-500.0,0.00016438,2]
[394211784,1763382641395,-500.0,0.00016438,2]
[394211786,1763382641406,-500.0,0.00016438,2]
[394211788,1763382641415,-500.0,0.00016438,2]
[394211790,1763382641426,-1500.0,0.00016468,2]
[394211792,1763382641435,-1004.37558909,0.00016468,2]
[394211794,1763382641444,-1016.64132678,0.00016468,2]
[394211796,1763382641454,-541.04800509,0.00016468,2]
[394211798,1763382641465,-500.0,0.00016473,2]
[394211800,1763382641475,-502.73202336,0.00016473,2]
[394211802,1763382641485,-182.75279002,0.00016473,2]
[394211804,1763382641495,-500.0,0.00016473,2]
[394211806,1763382641505,-500.0,0.00016473,2]
[394211808,1763382641515,-500.0,0.00016473,2]
[394211810,1763382641524,-505.03306875,0.00016473,2]
[394211812,1763382641534,-501.3914242,0.00016473,2]
[394211814,1763382641543,-500.0,0.00016473,2]
[394211816,1763382641553,-500.4503771,0.00016473,2]
[394211818,1763382641562,-162.71889815,0.00016473,2]
[394211820,1763382641572,-160.0,0.00016488,2]
[394211822,1763382641581,-500.0,0.00016636,2]
[394211823,1763382641590,-587.0,0.00016771,2]
[394211824,1763382641599,-2351.0,0.00016906,2]
[394211825,1763382641607,-500.0,0.0001691,2]
[394211826,1763382641617,-3000.0,0.00016912,2]
[394211827,1763382641625,-2351.0,0.00016916,2]
[394211828,1763382641634,-45823.08690666,0.00017,2]
[394211829,1763382641643,-2000.0,0.00017016,2]
[394211830,1763382641651,-606.11024176,0.00017021,2]
[394211831,1763382641660,-164.0898945,0.00017021,2]
[394211832,1763382641670,-274.0948081,0.00017021,2]
[394211833,1763382641679,-1001.47190717,0.00017021,2]
[394211834,1763382641687,-260.0,0.00017036,2]
[394211835,1763382641696,-500.0,0.00017184,2]
[394211836,1763382641705,-698.59521604,0.0001726,2]
[394211837,1763382641715,-500.0,0.00017458,2]
[394211838,1763382641723,-477.42487773,0.0001746,2]
[394211839,1763382641732,-1931.38695596,0.00017564,2]
[394211840,1763382641741,-360.0,0.00017584,2]
[394211841,1763382641750,-864.0,0.0001762,2]
[394211842,1763382641758,-1135.24857012,0.00017689,2]
[394211843,1763382641767,-395.03358643,0.00017732,2]
[394211844,1763382641776,-261.56862625,0.00017966,2]
[394211845,1763382641788,-36187.92069803,0.00018,2]
[394211846,1763382641797,-2034.75722423,0.00018,2]
[394211847,1763382641805,-90492.27316751,0.00018,2]
[394211848,1763382641815,-12962.04999538,0.0001804,2]
[394211849,1763382641824,-460.0,0.00018132,2]
[394211851,1763382641833,-823.0,0.00018374,2]
[394211853,1763382641842,-1216.0,0.00018531,2]
[394211855,1763382641851,-1684.0,0.00018597,2]
[394211857,1763382641860,-560.0,0.0001868,2]
[394211859,1763382641871,-359.21984916,0.000189,2]
[394211861,1763382641881,-6396.41535486,0.00019041,2]
[394211863,1763382641890,-660.0,0.00019228,2]
[394211865,1763382641900,-1135.24857012,0.00019318,2]
[394211867,1763382641909,-1000.0,0.00019382,2]
[394211869,1763382641919,-158.49180802,0.00019443,2]
[394211871,1763382641928,-151.0,0.00019754,7]
[394211873,1763382641938,-151.0,0.00019754,7]
[394211875,1763382641947,-760.0,0.00019776,2]
[394211877,1763382641957,-296.18800325,0.00019966,2]
[394211879,1763382641966,-1152.0,0.0002,2]
[394211881,1763382641975,-11235.22040954,0.0002,2]
[394211883,1763382641984,-183.73144672,0.0002,2]
[394211885,1763382641994,-251.68318107,0.0002,21]
[394211886,1763382642002,-2963.6142836,0.0002,20]
[394211888,1763382642011,-2000.0,0.0002,7]
[394211890,1763382642021,-1152.0,0.0002013,2]
[394211892,1763382642029,-860.0,0.00020324,2]
[394211894,1763382642038,-2000.0,0.00020588,7]
[394211895,1763382642047,-689.69734843,0.00020768,2]
[394211897,1763382642057,-633.96723207,0.00020795,2]
[394211900,1763382642067,-287.10898409,0.00020847,2]
[394211901,1763382642076,-960.0,0.00020872,2]
[394211904,1763382642087,-1135.24857012,0.00020946,2]
[394211905,1763382642096,-1547.7476297,0.00021,10]
[394211907,1763382642105,-2000.0,0.00021176,7]
[394211909,1763382642115,-151.0,0.00021251,2]
[394211911,1763382642124,-151.0,0.00021251,2]
[394211913,1763382642134,-1000.0,0.00021251,2]
[394211915,1763382642143,-165.74880417,0.00021251,2]
[394211917,1763382642153,-1000.0,0.00021251,2]
[394211919,1763382642163,-1000.0,0.00021251,2]
[394211921,1763382642174,-1000.0,0.00021251,2]
[394211923,1763382642185,-1000.0,0.00021251,2]
[394211925,1763382642195,-1000.0,0.00021251,2]
[394211927,1763382642206,-500.0,0.00021251,2]
[394211929,1763382642216,-1000.0,0.00021251,2]
[394211931,1763382642226,-500.0,0.00021251,2]
[394211933,1763382642236,-4593.02845099,0.00021251,2]
[394211935,1763382642246,-1000.0,0.00021251,2]
[394211937,1763382642255,-500.0,0.00021251,2]
[394211939,1763382642264,-1000.0,0.00021251,2]
[394211941,1763382642274,-500.0,0.00021251,2]
[394211943,1763382642284,-1000.0,0.00021251,2]
[394211945,1763382642294,-500.0,0.00021251,2]
[394211947,1763382642304,-845.54684014,0.00021251,2]
[394211949,1763382642314,-500.0,0.00021251,2]
[394211951,1763382642323,-510.41686513,0.00021251,2]
[394211953,1763382642332,-4762.97050368,0.00021306,2]
[394211955,1763382642341,-231.72,0.00021321,20]
[394211957,1763382642351,-244.0,0.00021321,20]